[Event "Titled Tuesday Blitz August 1 Early 2023"]
[White "Al Mukhaini, Shima"]
[Black "Priasmoro, Novendra"]
[WhiteFideId "22005854"]
[BlackFideId "7105029"]
[WhiteElo "2433"]
[BlackElo "2791"]
[Result "0-1"]
[Round "6"]
[TimeControl "180+1"]
[Date "2023.08.01"]
[WhiteClock "0:00:13"]
[BlackClock "0:00:11"]
[Board "34"]

1. e4 {[%clk 0:02:48]}  c5 {[%clk 0:02:58]} 2. d4 {[%clk 0:02:47]}  cxd4 {[%clk 0:02:58]} 3. c3 {[%clk 0:02:46]}  d3 {[%clk 0:02:56]} 4. Bxd3 {[%clk 0:02:45]}  Nc6 {[%clk 0:02:57]} 5. f4 {[%clk 0:02:43]}  g6 {[%clk 0:02:58]} 6. Nf3 {[%clk 0:02:44]}  Bg7 {[%clk 0:02:58]} 7. O-O {[%clk 0:02:43]}  d6 {[%clk 0:02:59]} 8. Qe2 {[%clk 0:02:41]}  Nf6 {[%clk 0:02:59]} 9. h3 {[%clk 0:02:41]}  O-O {[%clk 0:02:59]} 10. Be3 {[%clk 0:02:40]}  Nh5 {[%clk 0:02:58]} 11. Qf2 {[%clk 0:02:38]}  e5 {[%clk 0:02:58]} 12. f5 {[%clk 0:02:34]}  Nf4 {[%clk 0:02:59]} 13. Bxf4 {[%clk 0:02:34]}  exf4 {[%clk 0:02:59]} 14. Nbd2 {[%clk 0:02:29]}  d5 {[%clk 0:02:55]} 15. Rad1 {[%clk 0:02:08]}  dxe4 {[%clk 0:02:39]} 16. Bxe4 {[%clk 0:02:08]}  Qf6 {[%clk 0:02:22]} 17. fxg6 {[%clk 0:02:04]}  hxg6 {[%clk 0:02:23]} 18. Nb3 {[%clk 0:01:53]}  Re8 {[%clk 0:01:58]} 19. Bd5 {[%clk 0:01:44]}  Bf5 {[%clk 0:01:52]} 20. Nfd4 {[%clk 0:01:41]}  Be4 {[%clk 0:01:43]} 21. Nxc6 {[%clk 0:01:31]}  Bxd5 {[%clk 0:01:34]} 22. Rxd5 {[%clk 0:01:26]}  bxc6 {[%clk 0:01:34]} 23. Rd4 {[%clk 0:01:24]}  g5 {[%clk 0:01:34]} 24. h4 {[%clk 0:01:12]}  Qg6 {[%clk 0:00:57]} 25. Ra4 {[%clk 0:01:07]}  Re3 {[%clk 0:00:28]} 26. hxg5 {[%clk 0:01:01]}  Be5 {[%clk 0:00:28]} 27. Rxf4 {[%clk 0:00:50]}  Bxf4 {[%clk 0:00:23]} 28. Qxf4 {[%clk 0:00:51]}  Rae8 {[%clk 0:00:21]} 29. Nd4 {[%clk 0:00:52]}  Re1 {[%clk 0:00:21]} 30. Nf5 {[%clk 0:00:49]}  Rxf1+ {[%clk 0:00:21]} 31. Kxf1 {[%clk 0:00:48]}  Qe6 {[%clk 0:00:19]} 32. Nh6+ {[%clk 0:00:42]}  Kg7 {[%clk 0:00:19]} 33. Nf5+ {[%clk 0:00:42]}  Kg6 {[%clk 0:00:16]} 34. Nh4+ {[%clk 0:00:39]}  Kh7 {[%clk 0:00:16]} 35. Kg1 {[%clk 0:00:34]}  Qe1+ {[%clk 0:00:15]} 36. Kh2 {[%clk 0:00:34]}  Qe5 {[%clk 0:00:16]} 37. g3 {[%clk 0:00:29]}  Qxf4 {[%clk 0:00:16]} 38. gxf4 {[%clk 0:00:30]}  Re2+ {[%clk 0:00:17]} 39. Kg3 {[%clk 0:00:30]}  Rxb2 {[%clk 0:00:18]} 40. Nf5 {[%clk 0:00:28]}  Rxa2 {[%clk 0:00:17]} 41. Nd6 {[%clk 0:00:29]}  Kg8 {[%clk 0:00:16]} 42. Kg4 {[%clk 0:00:26]}  Rc2 {[%clk 0:00:16]} 43. Kf5 {[%clk 0:00:26]}  Rxc3 {[%clk 0:00:16]} 44. Kf6 {[%clk 0:00:26]}  Rf3 {[%clk 0:00:12]} 45. f5 {[%clk 0:00:26]}  a5 {[%clk 0:00:12]} 46. Nc4 {[%clk 0:00:16]}  a4 {[%clk 0:00:11]} 47. Ne5 {[%clk 0:00:17]}  Rf1 {[%clk 0:00:10]} 48. Nxf7 {[%clk 0:00:14]}  Rxf5+ {[%clk 0:00:10]} 49. Kxf5 {[%clk 0:00:15]}  Kxf7 {[%clk 0:00:10]} 50. g6+ {[%clk 0:00:13]}  Kg7 {[%clk 0:00:11]} 0-1


[Site "https://www.chess.com"]

[Event "Titled Tuesday Blitz August 1 Early 2023"]
[White "Jones, Gawain C B"]
[Black "Rendle, Thomas E"]
[WhiteFideId "409561"]
[BlackFideId "408760"]
[WhiteElo "2903"]
[BlackElo "2679"]
[Result "0-1"]
[Round "6"]
[TimeControl "180+1"]
[Date "2023.08.01"]
[WhiteClock "0:00:02"]
[BlackClock "0:00:21"]
[Board "36"]

1. g3 {[%clk 0:02:53]}  f5 {[%clk 0:02:58]} 2. Bg2 {[%clk 0:02:53]}  Nf6 {[%clk 0:02:59]} 3. d3 {[%clk 0:02:52]}  d6 {[%clk 0:02:56]} 4. e4 {[%clk 0:02:49]}  Nc6 {[%clk 0:02:56]} 5. Nc3 {[%clk 0:02:47]}  g6 {[%clk 0:02:55]} 6. d4 {[%clk 0:02:45]}  fxe4 {[%clk 0:02:51]} 7. d5 {[%clk 0:02:43]}  Ne5 {[%clk 0:02:48]} 8. Nxe4 {[%clk 0:02:37]}  Bg4 {[%clk 0:02:46]} 9. Nxf6+ {[%clk 0:02:32]}  exf6 {[%clk 0:02:47]} 10. f3 {[%clk 0:02:32]}  Bd7 {[%clk 0:02:21]} 11. f4 {[%clk 0:02:27]}  Nc4 {[%clk 0:02:13]} 12. Nf3 {[%clk 0:02:14]}  Bg7 {[%clk 0:01:52]} 13. Nd4 {[%clk 0:01:44]}  O-O {[%clk 0:01:50]} 14. Ne6 {[%clk 0:01:40]}  Bxe6 {[%clk 0:01:49]} 15. dxe6 {[%clk 0:01:41]}  c6 {[%clk 0:01:49]} 16. O-O {[%clk 0:01:36]}  Qb6+ {[%clk 0:01:34]} 17. Kh1 {[%clk 0:01:36]}  Rae8 {[%clk 0:01:34]} 18. f5 {[%clk 0:01:26]}  gxf5 {[%clk 0:01:29]} 19. b3 {[%clk 0:01:22]}  Ne3 {[%clk 0:01:25]} 20. Bxe3 {[%clk 0:01:22]}  Qxe3 {[%clk 0:01:26]} 21. Re1 {[%clk 0:01:19]}  Qc5 {[%clk 0:01:14]} 22. Qd3 {[%clk 0:01:10]}  f4 {[%clk 0:01:11]} 23. gxf4 {[%clk 0:01:09]}  f5 {[%clk 0:01:12]} 24. Rad1 {[%clk 0:01:08]}  d5 {[%clk 0:01:07]} 25. Bh3 {[%clk 0:00:55]}  d4 {[%clk 0:00:55]} 26. Bg2 {[%clk 0:00:35]}  Re7 {[%clk 0:00:54]} 27. Re2 {[%clk 0:00:31]}  Qd6 {[%clk 0:00:51]} 28. c3 {[%clk 0:00:26]}  Rxe6 {[%clk 0:00:45]} 29. Rxe6 {[%clk 0:00:26]}  Qxe6 {[%clk 0:00:46]} 30. cxd4 {[%clk 0:00:27]}  Qd6 {[%clk 0:00:42]} 31. d5 {[%clk 0:00:24]}  c5 {[%clk 0:00:37]} 32. Qe3 {[%clk 0:00:20]}  Kh8 {[%clk 0:00:36]} 33. Re1 {[%clk 0:00:19]}  b6 {[%clk 0:00:30]} 34. a4 {[%clk 0:00:16]}  Rg8 {[%clk 0:00:29]} 35. Qf3 {[%clk 0:00:15]}  Bd4 {[%clk 0:00:28]} 36. Re6 {[%clk 0:00:14]}  Qd8 {[%clk 0:00:27]} 37. Qh5 {[%clk 0:00:12]}  Qf8 {[%clk 0:00:26]} 38. d6 {[%clk 0:00:07]}  Qg7 {[%clk 0:00:25]} 39. Re2 {[%clk 0:00:05]}  Be3 {[%clk 0:00:22]} 40. Qf3 {[%clk 0:00:02]}  Qa1+ {[%clk 0:00:21]} 0-1


[Site "https://www.chess.com"]

[Event "Titled Tuesday Blitz August 1 Early 2023"]
[White "Lewicki, Miroslaw"]
[Black "Ter-Sahakyan, Samvel"]
[WhiteFideId "1113380"]
[BlackFideId "13302531"]
[WhiteElo "2656"]
[BlackElo "2839"]
[Result "0-1"]
[Round "6"]
[TimeControl "180+1"]
[Date "2023.08.01"]
[WhiteClock "0:00:00"]
[BlackClock "0:00:22"]
[Board "38"]

1. g3 {[%clk 0:03:00]}  d5 {[%clk 0:02:58]} 2. Bg2 {[%clk 0:03:01]}  e5 {[%clk 0:02:58]} 3. d3 {[%clk 0:03:01]}  Nf6 {[%clk 0:02:58]} 4. Nf3 {[%clk 0:03:01]}  Bd6 {[%clk 0:02:58]} 5. O-O {[%clk 0:03:00]}  O-O {[%clk 0:02:58]} 6. b3 {[%clk 0:03:00]}  Re8 {[%clk 0:02:58]} 7. Bb2 {[%clk 0:03:00]}  c5 {[%clk 0:02:52]} 8. e4 {[%clk 0:02:53]}  d4 {[%clk 0:02:51]} 9. Nbd2 {[%clk 0:02:52]}  Nc6 {[%clk 0:02:51]} 10. c3 {[%clk 0:02:48]}  dxc3 {[%clk 0:02:47]} 11. Bxc3 {[%clk 0:02:49]}  b6 {[%clk 0:02:45]} 12. Qe2 {[%clk 0:02:46]}  Bc7 {[%clk 0:02:33]} 13. Rfd1 {[%clk 0:02:43]}  Ba6 {[%clk 0:02:30]} 14. Nf1 {[%clk 0:02:43]}  Qd7 {[%clk 0:02:25]} 15. Nh4 {[%clk 0:02:18]}  Rad8 {[%clk 0:02:24]} 16. Rd2 {[%clk 0:01:37]}  Nd4 {[%clk 0:02:14]} 17. Bxd4 {[%clk 0:01:33]}  Qxd4 {[%clk 0:02:15]} 18. Rad1 {[%clk 0:01:32]}  g6 {[%clk 0:02:15]} 19. Qf3 {[%clk 0:01:27]}  Qd6 {[%clk 0:02:09]} 20. Ne3 {[%clk 0:01:25]}  Kh8 {[%clk 0:02:09]} 21. h3 {[%clk 0:01:16]}  Qe7 {[%clk 0:02:08]} 22. Bf1 {[%clk 0:01:13]}  Rd7 {[%clk 0:02:05]} 23. Nhg2 {[%clk 0:01:06]}  Red8 {[%clk 0:02:04]} 24. Ng4 {[%clk 0:01:06]}  Nxg4 {[%clk 0:01:55]} 25. Qxg4 {[%clk 0:01:05]}  Rd4 {[%clk 0:01:47]} 26. Qf3 {[%clk 0:00:51]}  Kg7 {[%clk 0:01:40]} 27. Ne3 {[%clk 0:00:49]}  Bb7 {[%clk 0:01:40]} 28. g4 {[%clk 0:00:45]}  Qf6 {[%clk 0:01:37]} 29. Qe2 {[%clk 0:00:40]}  b5 {[%clk 0:01:30]} 30. Bg2 {[%clk 0:00:39]}  Ba5 {[%clk 0:01:29]} 31. Rc2 {[%clk 0:00:37]}  Bb6 {[%clk 0:01:30]} 32. Nd5 {[%clk 0:00:28]}  Qd6 {[%clk 0:01:30]} 33. Rdc1 {[%clk 0:00:26]}  Bxd5 {[%clk 0:01:21]} 34. exd5 {[%clk 0:00:25]}  Rf4 {[%clk 0:01:22]} 35. Qe1 {[%clk 0:00:11]}  Qf6 {[%clk 0:01:21]} 36. Kh1 {[%clk 0:00:05]}  Rh8 {[%clk 0:01:11]} 37. Rxc5 {[%clk 0:00:03]}  Bxc5 {[%clk 0:01:10]} 38. Rxc5 {[%clk 0:00:04]}  Rxf2 {[%clk 0:01:00]} 39. d6 {[%clk 0:00:04]}  Rd8 {[%clk 0:00:54]} 40. Rxe5 {[%clk 0:00:02]}  Rxd6 {[%clk 0:00:52]} 41. Re3 {[%clk 0:00:02]}  Rxa2 {[%clk 0:00:46]} 42. Qg3 {[%clk 0:00:02]}  Re6 {[%clk 0:00:44]} 43. Rf3 {[%clk 0:00:02]}  Ra1+ {[%clk 0:00:42]} 44. Kh2 {[%clk 0:00:03]}  Qe5 {[%clk 0:00:43]} 45. Rf4 {[%clk 0:00:03]}  g5 {[%clk 0:00:38]} 46. Rf5 {[%clk 0:00:04]}  Qxg3+ {[%clk 0:00:35]} 47. Kxg3 {[%clk 0:00:04]}  h6 {[%clk 0:00:28]} 48. Be4 {[%clk 0:00:04]}  a6 {[%clk 0:00:27]} 49. Rc5 {[%clk 0:00:04]}  Rf6 {[%clk 0:00:23]} 50. Bd5 {[%clk 0:00:01]}  Rg1+ {[%clk 0:00:22]} 51. Kh2 {[%clk 0:00:00]}  Rgf1 {[%clk 0:00:22]} 0-1


[Site "https://www.chess.com"]

[Event "Titled Tuesday Blitz August 1 Early 2023"]
[White "Sosa, Tomas"]
[Black "Hua, Lefong"]
[WhiteFideId "121576"]
[BlackFideId "2602253"]
[WhiteElo "2825"]
[BlackElo "2650"]
[Result "0-1"]
[Round "6"]
[TimeControl "180+1"]
[Date "2023.08.01"]
[WhiteClock "0:00:08"]
[BlackClock "0:01:14"]
[Board "39"]

1. d4 {[%clk 0:03:00]}  Nf6 {[%clk 0:03:00]} 2. c4 {[%clk 0:03:00]}  c5 {[%clk 0:02:59]} 3. e3 {[%clk 0:02:59]}  g6 {[%clk 0:02:59]} 4. Nc3 {[%clk 0:02:59]}  Bg7 {[%clk 0:02:59]} 5. Nf3 {[%clk 0:02:59]}  O-O {[%clk 0:03:00]} 6. Be2 {[%clk 0:02:59]}  cxd4 {[%clk 0:03:01]} 7. exd4 {[%clk 0:03:00]}  d5 {[%clk 0:03:01]} 8. h3 {[%clk 0:03:01]}  Nc6 {[%clk 0:03:02]} 9. O-O {[%clk 0:02:57]}  Be6 {[%clk 0:03:02]} 10. c5 {[%clk 0:02:57]}  Ne4 {[%clk 0:03:02]} 11. Be3 {[%clk 0:02:55]}  Nxc5 {[%clk 0:03:02]} 12. dxc5 {[%clk 0:02:50]}  d4 {[%clk 0:03:03]} 13. Nxd4 {[%clk 0:02:39]}  Nxd4 {[%clk 0:03:04]} 14. Bg4 {[%clk 0:02:32]}  Bxg4 {[%clk 0:02:52]} 15. Qxg4 {[%clk 0:02:33]}  Nc2 {[%clk 0:02:48]} 16. Rac1 {[%clk 0:01:39]}  Nxe3 {[%clk 0:02:47]} 17. fxe3 {[%clk 0:01:40]}  Qd2 {[%clk 0:02:30]} 18. Qe4 {[%clk 0:01:34]}  Qxb2 {[%clk 0:02:22]} 19. Nd5 {[%clk 0:01:34]}  e6 {[%clk 0:02:20]} 20. Ne7+ {[%clk 0:01:18]}  Kh8 {[%clk 0:02:20]} 21. Rb1 {[%clk 0:01:18]}  Qa3 {[%clk 0:02:17]} 22. Rb5 {[%clk 0:00:45]}  a6 {[%clk 0:02:00]} 23. Rb4 {[%clk 0:00:45]}  Rae8 {[%clk 0:01:45]} 24. Qxb7 {[%clk 0:00:36]}  Rxe7 {[%clk 0:01:32]} 25. Qxe7 {[%clk 0:00:33]}  Qxb4 {[%clk 0:01:32]} 26. Rd1 {[%clk 0:00:32]}  Kg8 {[%clk 0:01:24]} 27. h4 {[%clk 0:00:16]}  Bh6 {[%clk 0:01:22]} 28. h5 {[%clk 0:00:16]}  Bxe3+ {[%clk 0:01:22]} 29. Kh2 {[%clk 0:00:17]}  Qf4+ {[%clk 0:01:18]} 30. Kh1 {[%clk 0:00:08]}  Qg4 {[%clk 0:01:14]} 0-1


[Site "https://www.chess.com"]

[Event "Titled Tuesday Blitz August 1 Early 2023"]
[White "Pichot, Alan"]
[Black "Sipila, Vilka"]
[WhiteFideId "110973"]
[BlackFideId "505455"]
[WhiteElo "2818"]
[BlackElo "2628"]
[Result "1-0"]
[Round "6"]
[TimeControl "180+1"]
[Date "2023.08.01"]
[WhiteClock "0:00:29"]
[BlackClock "0:00:00"]
[Board "40"]

1. c4 {[%clk 0:02:59]}  f5 {[%clk 0:02:59]} 2. b3 {[%clk 0:02:59]}  Nf6 {[%clk 0:02:59]} 3. Bb2 {[%clk 0:02:59]}  e6 {[%clk 0:02:59]} 4. g3 {[%clk 0:02:59]}  Be7 {[%clk 0:03:00]} 5. Bg2 {[%clk 0:02:59]}  O-O {[%clk 0:03:00]} 6. Nf3 {[%clk 0:03:00]}  d6 {[%clk 0:03:00]} 7. O-O {[%clk 0:03:01]}  e5 {[%clk 0:03:01]} 8. d3 {[%clk 0:03:00]}  c6 {[%clk 0:03:01]} 9. Nc3 {[%clk 0:03:01]}  Na6 {[%clk 0:03:00]} 10. a3 {[%clk 0:03:00]}  Nc7 {[%clk 0:02:52]} 11. b4 {[%clk 0:03:01]}  Bd7 {[%clk 0:02:38]} 12. a4 {[%clk 0:03:01]}  a5 {[%clk 0:02:37]} 13. b5 {[%clk 0:03:01]}  Ne6 {[%clk 0:02:35]} 14. Ba3 {[%clk 0:03:00]}  e4 {[%clk 0:02:27]} 15. dxe4 {[%clk 0:02:57]}  fxe4 {[%clk 0:02:28]} 16. Nd4 {[%clk 0:02:57]}  d5 {[%clk 0:02:18]} 17. cxd5 {[%clk 0:02:52]}  cxd5 {[%clk 0:02:18]} 18. Bxe7 {[%clk 0:02:42]}  Qxe7 {[%clk 0:02:18]} 19. Nf5 {[%clk 0:02:42]}  Qc5 {[%clk 0:02:17]} 20. Rc1 {[%clk 0:02:43]}  d4 {[%clk 0:02:15]} 21. Nd5 {[%clk 0:02:38]}  Qa3 {[%clk 0:01:34]} 22. Nxf6+ {[%clk 0:02:34]}  Rxf6 {[%clk 0:01:35]} 23. Nxd4 {[%clk 0:02:34]}  Nc5 {[%clk 0:01:34]} 24. Nc2 {[%clk 0:02:23]}  Qb3 {[%clk 0:01:24]} 25. Ne3 {[%clk 0:02:23]}  Qa3 {[%clk 0:01:13]} 26. Rxc5 {[%clk 0:02:21]}  Qxc5 {[%clk 0:01:08]} 27. Qxd7 {[%clk 0:02:21]}  Raf8 {[%clk 0:01:06]} 28. Qd5+ {[%clk 0:02:07]}  Qxd5 {[%clk 0:01:06]} 29. Nxd5 {[%clk 0:02:08]}  Re6 {[%clk 0:01:04]} 30. Rc1 {[%clk 0:01:59]}  Re5 {[%clk 0:01:01]} 31. Ne3 {[%clk 0:01:56]}  Rd8 {[%clk 0:00:58]} 32. Rc4 {[%clk 0:01:56]}  Rd2 {[%clk 0:00:57]} 33. Bxe4 {[%clk 0:01:55]}  b6 {[%clk 0:00:55]} 34. Kf1 {[%clk 0:01:54]}  g6 {[%clk 0:00:53]} 35. f3 {[%clk 0:01:52]}  Ra2 {[%clk 0:00:47]} 36. Nd5 {[%clk 0:01:51]}  Re6 {[%clk 0:00:44]} 37. Nxb6 {[%clk 0:01:44]}  Ra1+ {[%clk 0:00:36]} 38. Kf2 {[%clk 0:01:44]}  Rxb6 {[%clk 0:00:36]} 39. Ke3 {[%clk 0:01:16]}  Rd1 {[%clk 0:00:29]} 40. Bd3 {[%clk 0:01:11]}  Re6+ {[%clk 0:00:25]} 41. Kf4 {[%clk 0:01:09]}  Kf8 {[%clk 0:00:21]} 42. Rc7 {[%clk 0:01:05]}  Re7 {[%clk 0:00:21]} 43. Rc8+ {[%clk 0:01:00]}  Re8 {[%clk 0:00:21]} 44. Rc6 {[%clk 0:01:00]}  Ra1 {[%clk 0:00:19]} 45. Rc4 {[%clk 0:00:55]}  Re6 {[%clk 0:00:17]} 46. h4 {[%clk 0:00:55]}  Ke7 {[%clk 0:00:17]} 47. Rc7+ {[%clk 0:00:51]}  Kd6 {[%clk 0:00:16]} 48. Rxh7 {[%clk 0:00:51]}  Rxa4+ {[%clk 0:00:16]} 49. Kg5 {[%clk 0:00:52]}  Rb4 {[%clk 0:00:16]} 50. Ra7 {[%clk 0:00:52]}  a4 {[%clk 0:00:16]} 51. b6 {[%clk 0:00:51]}  Rxb6 {[%clk 0:00:10]} 52. Rxa4 {[%clk 0:00:51]}  Ke7 {[%clk 0:00:08]} 53. Ra7+ {[%clk 0:00:50]}  Kf8 {[%clk 0:00:09]} 54. g4 {[%clk 0:00:46]}  Rbd6 {[%clk 0:00:07]} 55. f4 {[%clk 0:00:39]}  Rd5+ {[%clk 0:00:06]} 56. f5 {[%clk 0:00:39]}  gxf5 {[%clk 0:00:06]} 57. gxf5 {[%clk 0:00:40]}  Rb6 {[%clk 0:00:06]} 58. h5 {[%clk 0:00:39]}  Rdd6 {[%clk 0:00:02]} 59. Bc4 {[%clk 0:00:37]}  Rdc6 {[%clk 0:00:02]} 60. Bd5 {[%clk 0:00:35]}  Rd6 {[%clk 0:00:02]} 61. e4 {[%clk 0:00:35]}  Ke8 {[%clk 0:00:01]} 62. Rh7 {[%clk 0:00:29]}  Kf8 {[%clk 0:00:00]} 63. h6 {[%clk 0:00:29]} 1-0


[Site "https://www.chess.com"]

[Event "Titled Tuesday Blitz August 1 Early 2023"]
[White "Guerra Tulcan, Lenin"]
[Black "Nazari, Arad"]
[WhiteFideId "3601382"]
[BlackFideId "12577324"]
[WhiteElo "2625"]
[BlackElo "2791"]
[Result "1-0"]
[Round "6"]
[TimeControl "180+1"]
[Date "2023.08.01"]
[WhiteClock "0:00:34"]
[BlackClock "0:00:00"]
[Board "41"]

1. e4 {[%clk 0:03:00]}  e6 {[%clk 0:02:51]} 2. d4 {[%clk 0:03:00]}  d5 {[%clk 0:02:50]} 3. Nd2 {[%clk 0:03:01]}  Be7 {[%clk 0:02:48]} 4. Ngf3 {[%clk 0:03:00]}  Nf6 {[%clk 0:02:44]} 5. e5 {[%clk 0:03:00]}  Nfd7 {[%clk 0:02:43]} 6. Bd3 {[%clk 0:03:00]}  c5 {[%clk 0:02:43]} 7. c3 {[%clk 0:03:00]}  Nc6 {[%clk 0:02:44]} 8. O-O {[%clk 0:02:58]}  g5 {[%clk 0:02:41]} 9. dxc5 {[%clk 0:02:49]}  g4 {[%clk 0:02:38]} 10. Nd4 {[%clk 0:02:48]}  Ndxe5 {[%clk 0:02:31]} 11. Bb5 {[%clk 0:02:48]}  Bd7 {[%clk 0:02:21]} 12. Bxc6 {[%clk 0:02:44]}  Nxc6 {[%clk 0:02:16]} 13. Qxg4 {[%clk 0:02:34]}  Bf6 {[%clk 0:01:55]} 14. Nxc6 {[%clk 0:02:30]}  Bxc6 {[%clk 0:01:51]} 15. Nf3 {[%clk 0:02:29]}  Qe7 {[%clk 0:01:50]} 16. Re1 {[%clk 0:02:22]}  O-O-O {[%clk 0:01:49]} 17. Bf4 {[%clk 0:02:18]}  h5 {[%clk 0:01:42]} 18. Qh3 {[%clk 0:02:17]}  Qxc5 {[%clk 0:01:37]} 19. Be5 {[%clk 0:02:09]}  Qe7 {[%clk 0:01:25]} 20. Nd4 {[%clk 0:02:06]}  Bd7 {[%clk 0:01:09]} 21. Qe3 {[%clk 0:02:05]}  Rhg8 {[%clk 0:00:49]} 22. a4 {[%clk 0:02:00]}  Bxe5 {[%clk 0:00:43]} 23. Qxe5 {[%clk 0:02:00]}  Rg5 {[%clk 0:00:43]} 24. Qe3 {[%clk 0:01:57]}  Rdg8 {[%clk 0:00:43]} 25. g3 {[%clk 0:01:56]}  a6 {[%clk 0:00:36]} 26. Nf3 {[%clk 0:01:54]}  Rg4 {[%clk 0:00:34]} 27. Ne5 {[%clk 0:01:40]}  Re4 {[%clk 0:00:26]} 28. Qa7 {[%clk 0:01:38]}  Rxe1+ {[%clk 0:00:26]} 29. Rxe1 {[%clk 0:01:37]}  Kc7 {[%clk 0:00:27]} 30. c4 {[%clk 0:01:34]}  Qb4 {[%clk 0:00:18]} 31. Rc1 {[%clk 0:01:18]}  Qxb2 {[%clk 0:00:18]} 32. Nd3 {[%clk 0:01:17]}  Qa3 {[%clk 0:00:11]} 33. cxd5+ {[%clk 0:01:17]}  Kd6 {[%clk 0:00:10]} 34. Qd4 {[%clk 0:01:09]}  Ke7 {[%clk 0:00:08]} 35. Rc7 {[%clk 0:01:06]}  Rd8 {[%clk 0:00:06]} 36. dxe6 {[%clk 0:01:03]}  fxe6 {[%clk 0:00:04]} 37. Qg7+ {[%clk 0:01:02]}  Kd6 {[%clk 0:00:05]} 38. Qe5+ {[%clk 0:00:57]}  Ke7 {[%clk 0:00:05]} 39. Qg5+ {[%clk 0:00:57]}  Ke8 {[%clk 0:00:04]} 40. Qxh5+ {[%clk 0:00:57]}  Ke7 {[%clk 0:00:04]} 41. Qg5+ {[%clk 0:00:57]}  Ke8 {[%clk 0:00:05]} 42. Ne5 {[%clk 0:00:53]}  Qa1+ {[%clk 0:00:01]} 43. Kg2 {[%clk 0:00:48]}  Qxa4 {[%clk 0:00:02]} 44. Rc4 {[%clk 0:00:39]}  Bc6+ {[%clk 0:00:02]} 45. Kh3 {[%clk 0:00:39]}  Qd1 {[%clk 0:00:00]} 46. Rf4 {[%clk 0:00:34]} 1-0


[Site "https://www.chess.com"]

[Event "Titled Tuesday Blitz August 1 Early 2023"]
[White "Belov, Alexei"]
[Black "Basso, Pier Luigi"]
[WhiteFideId "4128206"]
[BlackFideId "866970"]
[WhiteElo "2621"]
[BlackElo "2781"]
[Result "0-1"]
[Round "6"]
[TimeControl "180+1"]
[Date "2023.08.01"]
[WhiteClock "0:01:27"]
[BlackClock "0:01:49"]
[Board "43"]

1. e4 {[%clk 0:02:59]}  c6 {[%clk 0:02:51]} 2. d4 {[%clk 0:02:59]}  d5 {[%clk 0:02:52]} 3. Nd2 {[%clk 0:02:59]}  dxe4 {[%clk 0:02:52]} 4. Nxe4 {[%clk 0:03:00]}  Nf6 {[%clk 0:02:52]} 5. Nxf6+ {[%clk 0:03:00]}  exf6 {[%clk 0:02:53]} 6. c3 {[%clk 0:03:00]}  Bd6 {[%clk 0:02:52]} 7. Bd3 {[%clk 0:03:00]}  O-O {[%clk 0:02:53]} 8. Ne2 {[%clk 0:03:00]}  Re8 {[%clk 0:02:54]} 9. Qc2 {[%clk 0:03:01]}  g6 {[%clk 0:02:53]} 10. Be3 {[%clk 0:03:01]}  Nd7 {[%clk 0:02:54]} 11. O-O-O {[%clk 0:03:01]}  Nf8 {[%clk 0:02:54]} 12. c4 {[%clk 0:03:00]}  b5 {[%clk 0:02:54]} 13. cxb5 {[%clk 0:02:49]}  cxb5 {[%clk 0:02:53]} 14. Bxb5 {[%clk 0:02:49]}  Bf5 {[%clk 0:02:52]} 15. Qa4 {[%clk 0:02:44]}  Nd7 {[%clk 0:02:31]} 16. Nc3 {[%clk 0:02:34]}  Nb6 {[%clk 0:02:31]} 17. Qa6 {[%clk 0:02:27]}  Rc8 {[%clk 0:02:24]} 18. Bxe8 {[%clk 0:02:05]}  Qxe8 {[%clk 0:02:25]} 19. Rhe1 {[%clk 0:01:56]}  Rxc3+ {[%clk 0:01:55]} 20. bxc3 {[%clk 0:01:55]}  Qe4 {[%clk 0:01:55]} 21. Re2 {[%clk 0:01:35]}  Qc6 {[%clk 0:01:49]} 22. Kd2 {[%clk 0:01:27]}  Nc4+ {[%clk 0:01:49]} 0-1


[Site "https://www.chess.com"]

[Event "Titled Tuesday Blitz August 1 Early 2023"]
[White "Gunduz, Umut Erdem"]
[Black "Rahman, Masruri"]
[WhiteFideId "6381383"]
[BlackFideId "7101163"]
[WhiteElo "2614"]
[BlackElo "2778"]
[Result "0-1"]
[Round "6"]
[TimeControl "180+1"]
[Date "2023.08.01"]
[WhiteClock "0:01:55"]
[BlackClock "0:00:57"]
[Board "44"]

1. e4 {[%clk 0:03:00]}  e6 {[%clk 0:02:59]} 2. d4 {[%clk 0:03:00]}  d5 {[%clk 0:02:59]} 3. Nc3 {[%clk 0:03:00]}  Bb4 {[%clk 0:03:00]} 4. exd5 {[%clk 0:03:01]}  exd5 {[%clk 0:03:00]} 5. Bd3 {[%clk 0:03:01]}  Nc6 {[%clk 0:03:00]} 6. Be3 {[%clk 0:03:01]}  Nge7 {[%clk 0:03:01]} 7. Qf3 {[%clk 0:03:02]}  Be6 {[%clk 0:02:58]} 8. Ne2 {[%clk 0:03:02]}  Qd7 {[%clk 0:02:55]} 9. h3 {[%clk 0:03:03]}  Bf5 {[%clk 0:02:54]} 10. O-O-O {[%clk 0:03:03]}  Bxd3 {[%clk 0:02:52]} 11. Rxd3 {[%clk 0:03:04]}  Bxc3 {[%clk 0:02:47]} 12. Nxc3 {[%clk 0:03:02]}  O-O {[%clk 0:02:47]} 13. Kb1 {[%clk 0:02:59]}  Nb4 {[%clk 0:02:36]} 14. Rd2 {[%clk 0:02:58]}  c6 {[%clk 0:02:36]} 15. Re1 {[%clk 0:02:56]}  Nf5 {[%clk 0:02:26]} 16. Bf4 {[%clk 0:02:54]}  Rae8 {[%clk 0:02:24]} 17. Red1 {[%clk 0:02:44]}  f6 {[%clk 0:02:16]} 18. g4 {[%clk 0:02:40]}  Ne7 {[%clk 0:02:09]} 19. h4 {[%clk 0:02:38]}  Ng6 {[%clk 0:01:56]} 20. h5 {[%clk 0:02:37]}  Nxf4 {[%clk 0:01:53]} 21. Qxf4 {[%clk 0:02:38]}  Re7 {[%clk 0:01:43]} 22. Ne2 {[%clk 0:02:32]}  Re4 {[%clk 0:01:40]} 23. Qf5 {[%clk 0:02:18]}  Qxf5 {[%clk 0:01:28]} 24. gxf5 {[%clk 0:02:19]}  Rfe8 {[%clk 0:01:27]} 25. Ng3 {[%clk 0:02:17]}  Re1 {[%clk 0:01:27]} 26. c3 {[%clk 0:02:17]}  Na6 {[%clk 0:01:24]} 27. Kc2 {[%clk 0:02:15]}  R1e7 {[%clk 0:01:10]} 28. Kd3 {[%clk 0:02:12]}  Nc7 {[%clk 0:00:59]} 29. Re2 {[%clk 0:02:11]}  Rxe2 {[%clk 0:01:00]} 30. Nxe2 {[%clk 0:02:12]}  Nb5 {[%clk 0:01:00]} 31. Ng3 {[%clk 0:02:09]}  Nd6 {[%clk 0:00:58]} 32. f3 {[%clk 0:01:55]}  Nc4 {[%clk 0:00:57]} 0-1


[Site "https://www.chess.com"]

[Event "Titled Tuesday Blitz August 1 Early 2023"]
[White "Principe, Gerson"]
[Black "djokovic74"]
[WhiteFideId "3804550"]
[WhiteElo "2613"]
[BlackElo "2762"]
[Result "0-1"]
[Round "6"]
[TimeControl "180+1"]
[Date "2023.08.01"]
[WhiteClock "0:02:40"]
[BlackClock "0:02:23"]
[Board "46"]

1. Nf3 {[%clk 0:02:59]}  Nf6 {[%clk 0:02:59]} 2. d4 {[%clk 0:02:59]}  e6 {[%clk 0:02:59]} 3. e3 {[%clk 0:02:57]}  d5 {[%clk 0:02:59]} 4. Bd3 {[%clk 0:02:55]}  c5 {[%clk 0:02:56]} 5. b3 {[%clk 0:02:55]}  Bd6 {[%clk 0:02:57]} 6. Bb2 {[%clk 0:02:55]}  O-O {[%clk 0:02:57]} 7. Nbd2 {[%clk 0:02:55]}  Nbd7 {[%clk 0:02:57]} 8. Ne5 {[%clk 0:02:52]}  Qc7 {[%clk 0:02:51]} 9. f4 {[%clk 0:02:50]}  b6 {[%clk 0:02:50]} 10. O-O {[%clk 0:02:47]}  Bb7 {[%clk 0:02:50]} 11. Qf3 {[%clk 0:02:40]}  c4 {[%clk 0:02:23]} 0-1


[Site "https://www.chess.com"]